Cogmind - Beta 17.1 @@@ ROGUE MODE // 2026.09.20 @ 11:07:47 Player: Miniluz Result: Destroyed by D-53 Grenadier with Mini Grenade Launcher Performance ------------- Evolutions (0) 0 Regions Visited (2) 400 Robots Destroyed (30) 150 Value Destroyed (503) 503 Prototype IDs (0) 0 Alien Tech Used (0) 0 Bonus (0) 0 TOTAL SCORE: 1053 Bonus ------- None Cogmind --------- Core Integrity 0/250 Matter 266/300 Energy 48/100 System Corruption 0% Temperature Cool (0) Movement Core (400) Ox7 Location -10/Mines Parts ------- > --- POWER (1) -------- (None) > --- PROPULSION (2) --- (None) > --- UTILITY (2) ------ Large Storage Unit Improved Terrain Scanner > --- WEAPON (2) ------- Small Laser Assault Rifle > --- INVENTORY (15) --- Wheel Small Storage Unit Large Battery (200) Large Matter Pod (8) Weight Redist. System Signal Interpreter Terrain Scan Processor Targeting Computer Tractor Beam Mining Laser Peak State ------------ > --- POWER ------------ Ion Engine > --- PROPULSION ------- Light Treads Light Treads > --- UTILITY ---------- Large Storage Unit Improved Terrain Scanner > --- WEAPON ----------- Medium Laser Assault Rifle > --- INVENTORY -------- Light Ion Engine Wheel Small Storage Unit Signal Interpreter Terrain Scan Processor Tractor Beam Small Laser Small Laser Mining Laser [Rating: 10] Favorites ----------- Power Light Ion Engine Engine Light Ion Engine Propulsion Light Treads Treads Light Treads Utility Improved Terrain Scanner Device Improved Terrain Scanner Storage Large Storage Unit Weapon Assault Rifle Energy Gun Medium Laser Ballistic Gun Assault Rifle Build | -11 -10 -10 ------- Run | Yrd Mat Min Slots Evolved . | . . . Power . | . . . Propulsion . | . . . Utility . | . . . Weapon . | . . . Parts Attached 17 | 7 6 4 Power 4 | 1 2 1 Engine 4 | 1 2 1 Core . | . . . Reactor . | . . . Propulsion 3 | 2 1 . Treads 3 | 2 1 . Leg . | . . . Wheel . | . . . Hover . | . . . Flight . | . . . Utility 3 | 2 1 . Device 1 | 1 . . Storage 2 | 1 1 . Processor . | . . . Hackware . | . . . Protection . | . . . Artifact . | . . . Weapon 7 | 2 2 3 Energy Gun 3 | 1 . 2 Energy Cannon . | . . . Ballistic Gun 4 | 1 2 1 Ballistic Cannon . | . . . Launcher . | . . . Special Weapon . | . . . Impact Weapon . | . . . Slashing Weapon . | . . . Piercing Weapon . | . . . Special Melee Weapon . | . . . Unidentified Prototypes . | . . . Parts Lost 8 | . . 8 Power 2 | . . 2 Propulsion 3 | . . 3 Utility . | . . . Weapon 3 | . . 3 Highest Loss Streak 8 | . . 8 To Critical Strikes . | . . . Average Backups 8 | 1 8 14 Power 1 | . 1 . Propulsion . | . . 1 Utility 3 | . 3 8 Weapon 2 | . 3 3 Tool/Special . | . . . Unused Backups 9 | . . 9 Power . | . . . Propulsion 1 | . . 1 Utility 7 | . . 7 Weapon 1 | . . 1 Tool/Special . | . . . Average Slot Usage (%) 99 | . 100 93 Engine 13 | . 14 12 Treads 27 | . 28 24 Device 14 | . 14 14 Storage 14 | . 14 14 Energy Gun 7 | . 8 . Ballistic Gun 20 | . 19 26 Peak Build Rating 10 | 9 10 10 Average Rating 9 | 7 9 9 On Entrance 6 | . 9 10 Avg Prop Armor Cover (%) . | . . . Naked Turns . | . . . Heaviest Build 30 | 13 30 30 Greatest Support 40 | 40 40 40 Greatest Overweight (x) . | . . . Average Overweight (x) . | . . . Largest Inventory Capacity 15 | 8 15 15 Average Capacity 13 | 7 14 15 Most Carried 15 | 2 15 15 Average Carried 8 | 1 8 14 Final Capacity 15 | 8 15 15 Final Carried 15 | 2 15 10 Class Distribution -------------------- 100% | Mutant Dominant Class ---------------- Mutant | -10/Materials Mutant | -10/Mines Resources | -11 -10 -10 ----------- Run | Yrd Mat Min Matter Collected 635 | 312 323 . Remotely . | . . . Salvage Created 840 | 200 640 . Parts 64 | 15 49 . Haulers Intercepted 1 | . 1 . Recyclers Shooed 1 | . 1 . Parts Field Recycled . | . . . Retrieved Matter . | . . . Parts Self-Destructed . | . . . Prevented . | . . . Parts Restored . | . . . Kills | -11 -10 -10 ------- Run | Yrd Mat Min Combat Hostiles Destroyed 13 | . 13 . Guns 13 | . 13 . Classes Destroyed 8 | 3 5 . Worker 2 | 2 . . Builder 4 | . 4 . Tunneler 5 | 5 . . Hauler 1 | . 1 . Recycler 2 | 1 1 . Watcher 3 | . 3 . Swarmer 6 | . 6 . Grunt 7 | . 7 . Best Kill Streak 4 | 3 4 . Combat Bots Only 3 | . 3 . Max Kills in Single Turn 1 | 1 1 . Gunslinging . | . . . Exploded . | . . . Melee . | . . . Uniques/NPCs Destroyed . | . . . Combat | -11 -10 -10 -------- Run | Yrd Mat Min Hostile Shots Fired 86 | . 68 18 Missed 13 | . 12 1 Hits 73 | . 56 17 Projectile 73 | . 56 17 AOE 18 | . . 18 Critical Strikes 2 | . 2 . Damage Taken 1285 | . 568 717 Core 250 | . 55 195 Absorbed by Shields . | . . . Core Remaining (%) 100 | 100 . . Volleys Fired 80 | 14 62 4 Largest 2 | 2 2 2 Hottest 70 | 70 70 60 Shots Fired 157 | 28 124 5 Gun 157 | 28 124 5 Cannon . | . . . Launcher . | . . . Special . | . . . Kinetic 107 | 14 89 4 Thermal 50 | 14 35 1 Explosive . | . . . Electromagnetic . | . . . Robot Hit Streak 14 | 8 14 8 Robot Miss Streak 5 | 2 5 1 Penetration Max . | . . . Secondary Targets . | . . . Shots Hit Robots 102 | 15 83 4 Core Hits 45 | 9 34 2 Critical Kills 1 | . 1 . Critical Parts Destroyed . | . . . Critical Strikes 3 | 1 2 . Burn 2 | 1 1 . Destroy 1 | . 1 . Melee Attacks . | . . . Impact . | . . . Slashing . | . . . Piercing . | . . . Sneak Attacks . | . . . Combat Hostiles . | . . . Follow-up Attacks . | . . . Damage Inflicted 1309 | 217 1043 49 Guns 1309 | 217 1043 49 Cannons . | . . . Explosions . | . . . Melee . | . . . Ramming . | . . . Kinetic 872 | 91 742 39 Thermal 437 | 126 301 10 Explosive . | . . . Electromagnetic . | . . . Impact . | . . . Slashing . | . . . Piercing . | . . . Highest Corruption . | . . . Average Corruption . | . . . Corruption Purged . | . . . Corruption Blocked . | . . . Overload Shots . | . . . Overflow Damage . | . . . Projectiles . | . . . Explosions . | . . . Melee . | . . . Knockbacks . | . . . Impact . | . . . Kinetic . | . . . Secondary . | . . . Self-Inflicted Damage . | . . . Shots . | . . . Rammed . | . . . Targets Rammed . | . . . Kicked . | . . . Crushed . | . . . Highest Temperature 135 | 36 135 . Average Temperature 29 | 11 36 . Received Heat Transfer 219 | . 219 . Siege Activations . | . . . Martial Activations . | . . . Shielding Activations . | . . . Robots Disrupted . | . . . Combat Hostiles . | . . . Robots Corrupted . | . . . Combat Hostiles . | . . . Parts Fried . | . . . Impact Corruptions . | . . . Robots Melted . | . . . Combat Hostiles . | . . . Parts Melted 3 | 2 1 . Heat Transferred 1431 | 444 962 25 Parts Sabotaged . | . . . Parts Stolen . | . . . Parts Stripped . | . . . Power Chain Reactions . | . . . Alert | -11 -10 -10 ------- Run | Yrd Mat Min Maximum Alert Level . | . . . Low Security (%) 100 | 100 100 100 Level 1 . | . . . Level 2 . | . . . Level 3 . | . . . Level 4 . | . . . Level 5 . | . . . High Security . | . . . Max Security . | . . . Peak Influence 127 | 10 127 47 Initial 47 | . . 47 Average 30 | 1 35 28 Influence Increases 483 | 40 443 . Destroy 0b10 Robot/C 260 | . 260 . Destroy 0b10 Robot/NC 85 | 40 45 . Destroy Leader 48 | . 48 . Successful Hack 8 | . 8 . Select Force Hacks 50 | . 50 . Destroy Structure 2 | . 2 . Lose Combat Pursuer 30 | . 30 . Influence Decreases 483 | 40 320 123 Entered New Map 76 | . . 76 Time Decay 390 | 40 320 30 Lost Part 17 | . . 17 Squads Dispatched 1 | . 1 . Investigation 1 | . 1 . Extermination . | . . . Reinforcement . | . . . Assault . | . . . Garrison . | . . . Intercept . | . . . Searches Triggered . | . . . Construction Impeded . | . . . Haulers Reinforced . | . . . Active Scanning Responses . | . . . Cargo Convoy Interrupts . | . . . Stealth | -11 -10 -10 --------- Run | Yrd Mat Min Distress Signals 1 | . 1 . Communications Jammed . | . . . Distress Signals . | . . . Times Spotted 24 | . 22 2 Peak Tracking Total 3 | . 3 2 Tactical Retreats 1 | . 1 . Traps | -11 -10 -10 ------- Run | Yrd Mat Min Traps Triggered . | . . . Indirectly . | . . . Trap Hack Attempts . | . . . Triggered . | . . . Disarmed 6 | . 6 . Reprogrammed . | . . . Reused . | . . . Traps Extracted . | . . . Installed . | . . . Triggered . | . . . Machines | -11 -10 -10 ---------- Run | Yrd Mat Min Machines Disabled . | . . . Max in Single Turn . | . . . Machines Repaired . | . . . Machines Dismantled . | . . . Machines Sabotaged 1 | . 1 . Overloaded Fab Kills . | . . . Hacking | -11 -10 -10 --------- Run | Yrd Mat Min Machines Accessed 5 | . 5 . Terminals 3 | . 3 . Fabricators . | . . . Repair Stations . | . . . Recycling Units 2 | . 2 . Scanalyzers . | . . . Garrison Access . | . . . Total Hacks 9 | . 9 . Successful 6 | . 6 . Failed 3 | . 3 . Catastrophic . | . . . Database Lockouts . | . . . Manual 3 | . 3 . Terminals 5 | . 5 . Fabricators . | . . . Repair Stations . | . . . Recycling Units 4 | . 4 . Scanalyzers . | . . . Garrison Access . | . . . Terminal Hacks 2 | . 2 . Branch Access Points 1 | . 1 . Disarm Traps 1 | . 1 . Fabricator Hacks . | . . . Repair Station Hacks . | . . . Recycling Unit Hacks 3 | . 3 . Report Inventory 1 | . 1 . Retrieve Matter 1 | . 1 . Retrieve Components 1 | . 1 . Scanalyzer . | . . . Garrison Access Hacks . | . . . Unauthorized Hacks 1 | . 1 . Terminals 1 | . 1 . Sabotage 1 | . 1 . Fabricators . | . . . Repair Stations . | . . . Recycling Units . | . . . Scanalyzers . | . . . Garrison Access . | . . . Data Cores Recovered . | . . . Used . | . . . Hacking Detections 3 | . 3 . Full Trace Events . | . . . Feedback Events . | . . . Feedback Blocked . | . . . Robot Schematics Acquired . | . . . Robots Built . | . . . Authchips . | . . . Time . | . . . Total Robot Build Rating . | . . . Part Schematics Acquired . | . . . Parts Built . | . . . Authchips . | . . . Time . | . . . Total Part Build Rating . | . . . Part Studies Acquired . | . . . Parts Repaired . | . . . Time . | . . . Parts Recycled . | . . . Recycled Matter . | . . . Retrieved Matter . | . . . Retrieved Components 4 | . 4 . Parts Scanalyzed . | . . . Part Schematics Acquired . | . . . Parts Damaged . | . . . Bothacking | -11 -10 -10 ------------ Run | Yrd Mat Min Used RIF Installer . | . . . Robots Hacked . | . . . Non-combat . | . . . Combat . | . . . Robot Hacks Applied . | . . . Relay Couplers Released . | . . . Fabnet Peak Effective % . | . . . Robots Rewired . | . . . Allies Hacked . | . . . Hacks Repelled . | . . . Allies | -11 -10 -10 -------- Run | Yrd Mat Min Total Allies . | . . . Largest Group . | . . . Highest-Rated Group . | . . . Highest-Rated Ally . | . . . Total Orders . | . . . Ally Attacks . | . . . Total Damage . | . . . Kills . | . . . Allies Corrupted . | . . . Allies Melted . | . . . Intel | -11 -10 -10 ------- Run | Yrd Mat Min Active Infowar (turns) 1758 | 146 1532 80 Terrain 1758 | 146 1532 80 Robot Analysis Total . | . . . Derelict Logs Recovered . | . . . Drone Launches . | . . . Drone Recoveries . | . . . Exploration | -11 -10 -10 ------------- Run | Yrd Mat Min Turns Passed 1841 | 229 1532 80 Spaces Moved 641 | 111 487 43 Core 2 | 2 . . Treads 639 | 109 487 43 Legs . | . . . Wheels . | . . . Hover . | . . . Flight . | . . . Fastest Speed 50 | 50 160 160 Average Speed 159 | 158 160 160 Slowest Speed 160 | 160 160 160 Overloaded Moves . | . . . Propulsion Burnouts . | . . . Robots Hopped . | . . . Potential Cave-ins . | . . . Cave-ins Triggered . | . . . Exploration Rate (%) 26 | 6 59 13 Regions Visited 2 Branch Regions 1 Pre-discovered Areas . | . . . Known Exits Taken 1 | . 1 . Unknown Exits Taken 1 | 1 . . Scrap Searched . | . . . Spaces Dug . | . . . Terrain Destroyed . | . . . Melee . | . . . Projectile . | . . . AOE . | . . . Terrain Rammed . | . . . Walls Destroyed . | . . . Machines Disabled . | . . . Actions | -11 -10 -10 --------- Run | Yrd Mat Min Total 1300 | 133 1115 52 Wait 545 | . 545 . Move 639 | 110 486 43 Hop . | . . . Pick Up 14 | 2 12 . Fast Attach 7 | 7 . . Attach 5 | . . 5 Detach . | . . . Swap 6 | . 6 . Drop 4 | . 4 . Fire 80 | 14 62 4 Melee . | . . . Ram . | . . . Kick . | . . . Crush . | . . . Escape Stasis . | . . . Rewire . | . . . Trap . | . . . Miscellaneous . | . . . Route ------- -11/Scrapyard -10/Materials (discovered 2 exits: [*Mat] / *Min) -10/Mines History --------- Turn | Location | Event 24 | -11/Scrapyard | Discovered new exit (range 16) 230 | -11/Scrapyard | Entered Materials 307 | -10/Materials | Build established: Mutant 984 | -10/Materials | Discovered new exit (range 9) 1078 | -10/Materials | Identified exit to Mines 1762 | -10/Materials | Entered Mines 1791 | -10/Mines | Assembled infested the area 1835 | -10/Mines | Core integrity fell below 50% 1842 | -10/Mines | Core integrity fell below 20% 1842 | -10/Mines | Destroyed by D-53 Grenadier with Mini Grenade Launcher Last Messages --------------- squad. 01825_ C-45 Heavy ARC bursts open, deploying its payload. 01825_ D-53 Grenadier unfolds itself. 01825_ Ion Engine destroyed. 01825_ T-07 Excavator destroyed. 01826_ The unstable cave ceiling collapses. 01828_ Lgt. Treads destroyed. 01830_ Lgt. Ion Engine destroyed. 01831_ The unstable cave ceiling collapses. 01832_ Assault Rifle destroyed. 01834_ Lgt. Treads destroyed. 01834_ Assault Rifle destroyed. 01834_ Lgt. Treads destroyed. 01835_ U-05 Engineer builds a Wall. 01836_ Sml. Laser destroyed. 01838_ The unstable cave ceiling collapses. 01839_ U-05 Engineer lays Concrete. 01840_ The unstable cave ceiling collapses. 01840_ U-05 Engineer builds a Wall. 01841_ The unstable cave ceiling collapses. Map ----- +----------------------------------------------------+ | ?????????????????????????????????????????????????? | | ?????????????????????????????????????????????????? | | ?????????????????????????????????????????????????? | | ?????????????????????????????????????????????????? | | ?????????????????????????????????????????????????? | | ?????????????????????????????????????????????????? | | ?????????????????????????????????????????????????? | | ?????????????????????#???????????????????????????? | | ????????????????????# ?? ???????????????????????? | | ???????????????????? ??? ???????????????????????? | | ???????????????????? ???????????????????????????? | | ???????????????????# ????????????????????????????? | | ??????????#???????# ??#?????????????????????????? | | ?????????????????? ????????#???????????????????? | | ?????????????????? ??#?????????????????????????? | | #???????????????## ???????#????????????????????? | | ??????????????????# ??????######## ?????????????? | | ??????????#?#####?# #?????# ??????????????? | | ???????????## #### ###### ?????????????? | | ?????#?????# ### # ??????????????????? | | ???????????# # ??????? ????????????? | | ??????????## #### ##????????? ?????????? | | ??????????# ## ##??????? ??????????? | | ??????????# #### #?#????????????????? | | ??????????## ### u %d #####??????????????? | | ???????????##??# ### d @ #??????????????? | | ???????????????#?# #???????????? | | ?????????????????# ## ## #??????????? | | ?????????????????## ##????? ?????????? | | ??????????????????## # ##???????????????????? | | ???????????#???????#### #####????????????????????? | | ??????????????????????# #??#?????????????????????? | | ???????????????????#??# #????#??????? ???????????? | | ????????? ??????????#?# #??#? ???????????????????? | | ???????????????????#??# #????????????????????????? | | ??????????????????????# #????????????????????????? | | ????????????????????### #????????????????????????? | | ????????????????????# #??????#?????????????????? | | ???????????????????# #????????????????????????? | | ????????????#???? ???????????#???????????? | | ???????????????# $ ????????????????????????? | | ???????????????# ###???????????????????????? | | ???????????????##### #????#?????????????????????? | | ???????????????????###??#? ??????????????????????? | | ??????????????????????????????? ?????????????????? | | ?????????????????????????????????????????????????? | | ?????????????????????#??????#????????????????????? | | ?????????????????????????????????????????????????? | | ?????????????????????????????????????????????????? | | ?????????????????????????????????????????????????? | +----------------------------------------------------+ Best States ------------- Heat Dissipation 25 Energy Generation 10 Energy Capacity 250 Matter Stores 300 Matter Capacity 300 Sight Range 16 Terrain Scan Range 16 Terrain Scan Density 10 Evasion (%) 40 Recoil Reduction 2 Item Schematics ----------------- None Robot Schematics ------------------ None Fabricated ------------ Nothing Repaired ---------- Nothing Studied --------- None Alien Tech Used ----------------- None Achievements -------------- Brute Force I Have A Map? Challenges ------------ None Game ------ Seed WaveSurveybotPendant Manual? 0 Play Time 00:15:13 Cumulative 3.9 hours Start 2026.09.20 @ 10:53:03 End 2026.09.20 @ 11:07:47 Sessions 1 Manual Loads 0 Difficulty Rogue Special Mode None Game No. 6 Rogue 6 Adventurer 0 Explorer 0 Win Type - Total 0 Types 0/0/0/0/0/0/0/0/0/0 Lore% 9 Gallery% 8 Achievement% 8 Wizard Run 0 Options --------- Layout 0 ASCII 0 Keyboard 0 Movement Mouse Keybinds 0 Fullscreen 2 Font 24/Terminus Map View 76x50 Zoom Use 0% Tactical HUD 1 Map Filters NONE Filters NONE Steam 1 RUN: 74734b27-9ab8-4914-9196-fc46cfc5a6ae